[Event "ONJK-B 2019"]
[Site "Borne"]
[Date "2019.08.06"]
[Round "2.15"]
[White "Warnaar, Mark"]
[Black "Olree, Alex"]
[Result "0-1"]
[ECO "B08"]
[WhiteElo "1175"]
[BlackElo "1411"]
[Annotator "NA"]
[PlyCount "60"]
[EventDate "2019.08.05"]
[EventType "swiss"]
[EventCountry "NED"]
[SourceTitle "playchess.com"]
[Source "ChessBase"]
[SourceQuality "1"]
[TimeControl "5400+30"]

1. e4 {[%emt 0:00:00]} g6 {[%emt 0:00:00]} 2. d4 {[%emt 0:00:06]} Bg7 {[%emt 0:00:00]} 3. Nf3 {[%emt 0:00:06]} d6 {[%emt 0:00:00]} 4. Nc3 {[%emt 0:00:15]} Nf6 {[%emt 0:00:00]} 5. Bc4 {[%emt 0:00:09]} O-O {[%emt 0:00:00]} 6. O-O {[%emt 0:00:08]} Nxe4 {[%emt 0:00:00]} 7. Bxf7+ {[%emt 0:00:33]} Rxf7 {[%emt 0:00:00]} 8. Nxe4 {[%emt 0:00:07]} h6 {[%emt 0:00:00]} 9. Be3 {[%emt 0:01:11]} Bg4 {[%emt 0:01:52]} 10. Qd2 {[%emt 0:00:46]} Bxf3 {[%emt 0:01:43]} 11. gxf3 {[%emt 0:00:13]} Qf8 {[%emt 0:04:06]} 12. f4 {[%emt 0:04:23]} Nd7 {[%emt 0:05:49]} 13. Kh1 {[%emt 0:03:16]} Rd8 {[%emt 0:07:48]} 14. Rg1 {[%emt 0:01:18]} Kh7 {[%emt 0:01:35]} 15. Rae1 {[%emt 0:13:24]} e5 {[%emt 0:14:40]} 16. dxe5 {[%emt 0:00:00]} dxe5 {[%emt 0:00:10]} 17. fxe5 {[%emt 0:00:00]} Nxe5 {[%emt 0:00:21]} 18. Qe2 {[%emt 0:00:00]} Nf3 {[%emt 0:00:21]} 19. Bc5 {[%emt 0:00:00]} Nxg1 {[%emt 0:04:02]} 20. Rxg1 {[%emt 0:00:00]} Qe8 {[%emt 0:01:34]} 21. Qg4 {[%emt 0:00:00]} Qc6 {[%emt 0:01:57]} 22. Rg2 {[%emt 0:00:00]} Rf5 {[%emt 0:06:55]} 23. Be3 {[%emt 0:01:50]} Bxb2 {[%emt 0:05:57]} 24. Qh4 {[%emt 0:00:37]} Rd1+ {[%emt 0:01:33]} 25. Rg1 {[%emt 0:01:07]} Rxg1+ {[%emt 0:00:32]} 26. Kxg1 {[%emt 0:00:11]} Bg7 {[%emt 0:03:53]} 27. Ng5+ {[%emt 0:00:20]} Kg8 {[%emt 0:00:08]} 28. Ne4 {[%emt 0:00:36]} Qd7 {[%emt 0:11:30]} 29. Bxh6 {[%emt 0:01:01]} Rh5 {[%emt 0:00:09]} 30. Bxg7 {[%emt 0:00:18]} Qd1+ {[%emt 0:00:39]} 0-1

[Event "ONJK-B 2019"]
[Site "Borne"]
[Date "2019.08.06"]
[Round "2.16"]
[White "Berghuis, Rowin"]
[Black "Visser, Barto"]
[Result "1-0"]
[ECO "B30"]
[WhiteElo "1081"]
[BlackElo "1389"]
[Annotator "NA"]
[PlyCount "45"]
[EventDate "2019.08.05"]
[EventType "swiss"]
[EventCountry "NED"]
[SourceTitle "playchess.com"]
[Source "ChessBase"]
[SourceQuality "1"]
[TimeControl "5400+30"]

1. e4 {[%emt 0:00:00]} c5 {[%emt 0:00:00]} 2. Bc4 {[%emt 0:00:00]} e6 {[%emt 0:00:11]} 3. Nf3 {[%emt 0:00:11]} Nc6 {[%emt 0:00:25]} 4. O-O {[%emt 0:00:34]} Nf6 {[%emt 0:01:31]} 5. d3 {[%emt 0:00:39]} Be7 {[%emt 0:01:45]} 6. Nc3 {[%emt 0:00:55]} d5 {[%emt 0:02:50]} 7. exd5 {[%emt 0:03:43]} exd5 {[%emt 0:00:22]} 8. Bb5 {[%emt 0:00:52]} Bd7 {[%emt 0:01:13]} 9. Bg5 {[%emt 0:01:28]} O-O {[%emt 0:04:20]} 10. Bxf6 {[%emt 0:00:45]} Bxf6 {[%emt 0:00:55]} 11. Nxd5 {[%emt 0:01:37]} Bxb2 {[%emt 0:00:36]} 12. Rb1 {[%emt 0:00:53]} Bf6 {[%emt 0:02:55]} 13. Nd2 {[%emt 0:02:59]} Be5 {[%emt 0:06:37]} 14. Ne4 {[%emt 0:03:39]} b6 {[%emt 0:06:22]} 15. Re1 {[%emt 0:03:36]} Qh4 {[%emt 0:08:39]} 16. g3 {[%emt 0:02:52]} Qd8 {[%emt 0:03:18]} 17. c4 {[%emt 0:01:15]} Bd4 {[%emt 0:05:02]} 18. Nd2 {[%emt 0:04:30]} a6 {[%emt 0:10:16]} 19. Bxc6 {[%emt 0:01:26]} Bxc6 {[%emt 0:01:42]} 20. Ne7+ {[%emt 0:00:22]} Kh8 {[%emt 0:01:19]} 21. Nxc6 {[%emt 0:00:26]} Bxf2+ {[%emt 0:00:49]} 22. Kxf2 {[%emt 0:00:44]} Qf6+ {[%emt 0:00:19]} 23. Qf3 {[%emt 0:00:13]} 1-0

[Event "ONJK-B 2019"]
[Site "Borne"]
[Date "2019.08.06"]
[Round "3.1"]
[White "Maters, Arthur"]
[Black "Molanus, Lennart"]
[Result "1/2-1/2"]
[ECO "A00"]
[WhiteElo "2042"]
[BlackElo "1619"]
[Annotator "NA"]
[PlyCount "93"]
[EventDate "2019.08.05"]
[EventType "swiss"]
[EventCountry "NED"]
[SourceTitle "playchess.com"]
[Source "ChessBase"]
[SourceQuality "1"]
[TimeControl "5400+30"]

1. b4 {[%emt 0:00:00]} e6 {[%emt 0:05:52]} 2. a3 {[%emt 0:00:00]} Nf6 {[%emt 0:01:04]} 3. Nf3 {[%emt 0:00:00]} c5 {[%emt 0:00:26]} 4. bxc5 {[%emt 0:00:16]} Bxc5 {[%emt 0:00:15]} 5. d4 {[%emt 0:00:07]} Be7 {[%emt 0:01:45]} 6. Bf4 {[%emt 0:00:06]} Nc6 {[%emt 0:00:53]} 7. e3 {[%emt 0:00:09]} b6 {[%emt 0:01:44]} 8. Bd3 {[%emt 0:00:48]} Bb7 {[%emt 0:09:54]} 9. O-O {[%emt 0:00:36]} O-O {[%emt 0:00:06]} 10. Nbd2 {[%emt 0:02:35]} Nd5 {[%emt 0:04:24]} 11. Bg3 {[%emt 0:00:37]} Nc3 {[%emt 0:00:39]} 12. Qe1 {[%emt 0:00:20]} Rc8 {[%emt 0:01:05]} 13. Nb3 {[%emt 0:05:08]} Bf6 {[%emt 0:16:52]} 14. e4 {[%emt 0:08:39]} Na5 {[%emt 0:14:40]} 15. Bd6 {[%emt 0:02:12]} Nxb3 {[%emt 0:01:12]} 16. cxb3 {[%emt 0:00:18]} Be7 {[%emt 0:00:06]} 17. Bxe7 {[%emt 0:01:02]} Qxe7 {[%emt 0:00:16]} 18. Rc1 {[%emt 0:02:31]} Na2 {[%emt 0:07:06]} 19. Rxc8 {[%emt 0:00:05]} Rxc8 {[%emt 0:00:10]} 20. Qa1 {[%emt 0:00:03]} Qxa3 {[%emt 0:00:59]} 21. Bb1 {[%emt 0:00:07]} Rc1 {[%emt 0:02:35]} 22. g3 {[%emt 0:19:23]} Rxf1+ {[%emt 0:01:24]} 23. Kxf1 {[%emt 0:00:14]} Qc1+ {[%emt 0:00:14]} 24. Kg2 {[%emt 0:00:04]} Ba6 {[%emt 0:09:03]} 25. Nd2 {[%emt 0:08:39]} Nb4 {[%emt 0:11:43]} 26. Nc4 {[%emt 0:02:03]} Bxc4 {[%emt 0:00:27]} 27. bxc4 {[%emt 0:00:11]} g6 {[%emt 0:00:17]} 28. d5 {[%emt 0:07:04]} exd5 {[%emt 0:04:36]} 29. cxd5 {[%emt 0:00:56]} g5 {[%emt 0:00:55]} 30. h3 {[%emt 0:02:29]} d6 {[%emt 0:01:34]} 31. e5 {[%emt 0:00:19]} Nc2 {[%emt 0:01:18]} 32. Qa2 {[%emt 0:06:44]} Ne1+ {[%emt 0:00:08]} 33. Kf1 {[%emt 0:00:46]} Nf3+ {[%emt 0:00:13]} 34. Ke2 {[%emt 0:02:21]} Nxe5 {[%emt 0:00:02]} 35. Bd3 {[%emt 0:01:28]} Nxd3 {[%emt 0:00:37]} 36. Kxd3 {[%emt 0:00:03]} Qf1+ {[%emt 0:00:31]} 37. Ke3 {[%emt 0:00:21]} Qe1+ {[%emt 0:00:11]} 38. Kd3 {[%emt 0:00:51]} Qa5 {[%emt 0:00:26]} 39. Qc4 {[%emt 0:00:36]} Qa3+ {[%emt 0:01:26]} 40. Ke2 {[%emt 0:00:14]} Qc5 {[%emt 0:00:23]} 41. Qe4 {[%emt 0:00:08]} Qb5+ {[%emt 0:00:31]} 42. Kf3 {[%emt 0:00:14]} Qb3+ {[%emt 0:00:23]} 43. Kg4 {[%emt 0:00:14]} h6 {[%emt 0:00:57]} 44. Kh5 {[%emt 0:05:30]} Kg7 {[%emt 0:01:12]} 45. Qd4+ {[%emt 0:04:41]} Kh7 {[%emt 0:00:47]} 46. Qe4+ {[%emt 0:00:05]} Kg7 {[%emt 0:00:05]} 47. Qd4+ {[%emt 0:00:03]} 1/2-1/2

[Event "ONJK-B 2019"]
[Site "Borne"]
[Date "2019.08.06"]
[Round "3.2"]
[White "Hubers, Daan"]
[Black "Mainka, Alwin"]
[Result "1/2-1/2"]
[ECO "A00"]
[WhiteElo "1512"]
[BlackElo "1989"]
[Annotator "NA"]
[PlyCount "154"]
[EventDate "2019.08.05"]
[EventType "swiss"]
[EventCountry "NED"]
[SourceTitle "playchess.com"]
[Source "ChessBase"]
[SourceQuality "1"]
[TimeControl "5400+30"]

1. b4 {[%emt 0:00:00]} e6 {[%emt 0:00:00]} 2. Bb2 {[%emt 0:00:00]} Nf6 {[%emt 0:00:00]} 3. a3 {[%emt 0:00:00]} c5 {[%emt 0:00:00]} 4. b5 {[%emt 0:02:59]} d5 {[%emt 0:00:01]} 5. e3 {[%emt 0:00:21]} Bd6 {[%emt 0:00:18]} 6. Nf3 {[%emt 0:00:23]} Nbd7 {[%emt 0:00:26]} 7. c4 {[%emt 0:01:14]} O-O {[%emt 0:01:26]} 8. d4 {[%emt 0:02:02]} cxd4 {[%emt 0:00:55]} 9. exd4 {[%emt 0:01:47]} dxc4 {[%emt 0:00:16]} 10. Bxc4 {[%emt 0:00:24]} Nb6 {[%emt 0:00:05]} 11. Bd3 {[%emt 0:00:40]} Nbd5 {[%emt 0:01:16]} 12. O-O {[%emt 0:04:13]} b6 {[%emt 0:03:14]} 13. Nbd2 {[%emt 0:01:54]} Bb7 {[%emt 0:04:25]} 14. Nc4 {[%emt 0:01:41]} Nf4 {[%emt 0:07:47]} 15. Bc2 {[%emt 0:03:17]} Rc8 {[%emt 0:02:20]} 16. Bb3 {[%emt 0:02:35]} Bb8 {[%emt 0:05:08]} 17. Re1 {[%emt 0:10:36]} N6d5 {[%emt 0:02:05]} 18. Nce5 {[%emt 0:01:30]} Qe7 {[%emt 0:12:39]} 19. a4 {[%emt 0:03:19]} Rfd8 {[%emt 0:01:02]} 20. Rc1 {[%emt 0:00:50]} Bxe5 {[%emt 0:01:37]} 21. Nxe5 {[%emt 0:01:10]} Rxc1 {[%emt 0:05:22]} 22. Qxc1 {[%emt 0:01:00]} f6 {[%emt 0:02:07]} 23. Ba3 {[%emt 0:01:28]} Qe8 {[%emt 0:01:37]} 24. Bxd5 {[%emt 0:01:29]} Nxd5 {[%emt 0:00:17]} 25. Nf3 {[%emt 0:08:50]} Rc8 {[%emt 0:03:22]} 26. Qb2 {[%emt 0:05:01]} Nf4 {[%emt 0:06:15]} 27. Qb3 {[%emt 0:02:32]} Bd5 {[%emt 0:00:10]} 28. Qe3 {[%emt 0:00:56]} Nxg2 {[%emt 0:01:37]} 29. Kxg2 {[%emt 0:01:38]} Qg6+ {[%emt 0:00:05]} 30. Kh3 {[%emt 0:02:58]} e5 {[%emt 0:04:51]} 31. Rg1 {[%emt 0:06:53]} Qf5+ {[%emt 0:00:44]} 32. Kg3 {[%emt 0:01:56]} Bxf3 {[%emt 0:00:08]} 33. Qxf3 {[%emt 0:00:33]} Qg5+ {[%emt 0:00:55]} 34. Qg4 {[%emt 0:01:15]} Rc3+ {[%emt 0:00:09]} 35. f3 {[%emt 0:00:14]} Qxg4+ {[%emt 0:00:06]} 36. Kxg4 {[%emt 0:00:07]} Rxa3 {[%emt 0:00:04]} 37. Rc1 {[%emt 0:01:18]} Rxa4 {[%emt 0:00:36]} 38. Kf5 {[%emt 0:00:23]} Rxd4 {[%emt 0:00:30]} 39. Rc8+ {[%emt 0:00:19]} Kf7 {[%emt 0:00:05]} 40. Rc7+ {[%emt 0:00:06]} Kf8 {[%emt 0:00:14]} 41. Ke6 {[%emt 0:00:28]} Rd8 {[%emt 0:00:10]} 42. Rf7+ {[%emt 0:00:21]} Kg8 {[%emt 0:00:07]} 43. Rxa7 {[%emt 0:00:21]} Re8+ {[%emt 0:00:46]} 44. Kd7 {[%emt 0:00:56]} Kf8 {[%emt 0:00:41]} 45. Kc6 {[%emt 0:00:54]} Re6+ {[%emt 0:03:16]} 46. Kd5 {[%emt 0:00:19]} Re7 {[%emt 0:00:04]} 47. Ra6 {[%emt 0:00:47]} f5 {[%emt 0:00:13]} 48. Rxb6 {[%emt 0:01:38]} e4 {[%emt 0:00:07]} 49. fxe4 {[%emt 0:01:14]} fxe4 {[%emt 0:00:04]} 50. Rc6 {[%emt 0:00:25]} e3 {[%emt 0:00:29]} 51. Rc1 {[%emt 0:00:16]} e2 {[%emt 0:00:23]} 52. Re1 {[%emt 0:00:04]} Ke8 {[%emt 0:00:10]} 53. Kd6 {[%emt 0:00:32]} Kd8 {[%emt 0:01:54]} 54. b6 {[%emt 0:03:51]} Rd7+ {[%emt 0:00:33]} 55. Ke6 {[%emt 0:05:15]} Rb7 {[%emt 0:00:32]} 56. Kd5 {[%emt 0:00:50]} Rxb6 {[%emt 0:00:17]} 57. Rxe2 {[%emt 0:00:09]} Kd7 {[%emt 0:00:14]} 58. Ra2 {[%emt 0:02:10]} Rb5+ {[%emt 0:00:29]} 59. Kc4 {[%emt 0:01:07]} Rg5 {[%emt 0:00:07]} 60. Kd4 {[%emt 0:00:20]} Ke6 {[%emt 0:00:22]} 61. Ke4 {[%emt 0:00:25]} Rg4+ {[%emt 0:00:14]} 62. Kf3 {[%emt 0:00:09]} h5 {[%emt 0:00:13]} 63. Ra6+ {[%emt 0:00:40]} Kf5 {[%emt 0:00:29]} 64. Ra5+ {[%emt 0:02:15]} Kg6 {[%emt 0:00:08]} 65. Ra6+ {[%emt 0:00:53]} Kg5 {[%emt 0:00:22]} 66. Re6 {[%emt 0:04:32]} Ra4 {[%emt 0:00:24]} 67. Kg3 {[%emt 0:01:36]} Ra3+ {[%emt 0:00:33]} 68. Kg2 {[%emt 0:00:07]} h4 {[%emt 0:00:29]} 69. Rb6 {[%emt 0:01:26]} Kh5 {[%emt 0:00:21]} 70. Rb2 {[%emt 0:00:44]} g5 {[%emt 0:00:54]} 71. h3 {[%emt 0:00:37]} Re3 {[%emt 0:00:10]} 72. Rf2 {[%emt 0:00:41]} Kg6 {[%emt 0:00:10]} 73. Kh2 {[%emt 0:00:08]} Re4 {[%emt 0:00:26]} 74. Kg2 {[%emt 0:01:11]} Rf4 {[%emt 0:00:49]} 75. Ra2 {[%emt 0:00:10]} Rf6 {[%emt 0:00:30]} 76. Re2 {[%emt 0:00:09]} Kf5 {[%emt 0:00:54]} 77. Ra2 {[%emt 0:01:56]} Ke5 {[%emt 0:01:05]} 1/2-1/2

[Event "ONJK-B 2019"]
[Site "Borne"]
[Date "2019.08.06"]
[Round "3.3"]
[White "Van Weerden, Jur"]
[Black "Ekker, Laurens"]
[Result "1-0"]
[ECO "C45"]
[WhiteElo "1676"]
[BlackElo "1614"]
[Annotator "NA"]
[PlyCount "131"]
[EventDate "2019.08.05"]
[EventType "swiss"]
[EventCountry "NED"]
[SourceTitle "playchess.com"]
[Source "ChessBase"]
[SourceQuality "1"]
[TimeControl "5400+30"]

1. e4 {[%emt 0:00:00]} e5 {[%emt 0:00:00]} 2. Nf3 {[%emt 0:00:00]} Nc6 {[%emt 0:00:00]} 3. d4 {[%emt 0:00:00]} exd4 {[%emt 0:00:00]} 4. Nxd4 {[%emt 0:00:00]} Bc5 {[%emt 0:00:00]} 5. Nxc6 {[%emt 0:00:37]} bxc6 {[%emt 0:00:00]} 6. Nc3 {[%emt 0:00:14]} d6 {[%emt 0:01:28]} 7. g3 {[%emt 0:00:30]} Nf6 {[%emt 0:01:07]} 8. Bg2 {[%emt 0:01:10]} O-O {[%emt 0:00:57]} 9. O-O {[%emt 0:00:11]} Bg4 {[%emt 0:04:45]} 10. Qd3 {[%emt 0:01:42]} Qd7 {[%emt 0:03:57]} 11. Bg5 {[%emt 0:04:53]} Qe6 {[%emt 0:03:39]} 12. Be3 {[%emt 0:05:24]} Bxe3 {[%emt 0:01:54]} 13. Qxe3 {[%emt 0:00:28]} Bh3 {[%emt 0:01:25]} 14. Qf3 {[%emt 0:05:20]} Rfe8 {[%emt 0:02:55]} 15. Rfe1 {[%emt 0:01:01]} Re7 {[%emt 0:03:18]} 16. Re3 {[%emt 0:01:24]} h6 {[%emt 0:14:01]} 17. Qe2 {[%emt 0:02:16]} Bxg2 {[%emt 0:05:16]} 18. Kxg2 {[%emt 0:00:53]} Ng4 {[%emt 0:02:29]} 19. Rd3 {[%emt 0:01:04]} Ne5 {[%emt 0:00:54]} 20. Rd4 {[%emt 0:00:37]} Nd7 {[%emt 0:05:48]} 21. Re1 {[%emt 0:03:00]} Qe5 {[%emt 0:05:32]} 22. Rc4 {[%emt 0:04:12]} c5 {[%emt 0:02:40]} 23. f4 {[%emt 0:05:17]} Qe6 {[%emt 0:08:19]} 24. Nd5 {[%emt 0:00:40]} Nb6 {[%emt 0:10:43]} 25. Nxe7+ {[%emt 0:00:16]} Qxe7 {[%emt 0:00:13]} 26. Rc3 {[%emt 0:00:33]} Re8 {[%emt 0:01:12]} 27. Re3 {[%emt 0:01:50]} Qe6 {[%emt 0:00:53]} 28. b3 {[%emt 0:00:45]} Qd7 {[%emt 0:02:19]} 29. c4 {[%emt 0:01:24]} Qc6 {[%emt 0:02:59]} 30. Qf3 {[%emt 0:02:04]} Qd7 {[%emt 0:00:53]} 31. Rd1 {[%emt 0:01:55]} c6 {[%emt 0:04:04]} 32. Red3 {[%emt 0:01:31]} Rd8 {[%emt 0:00:52]} 33. f5 {[%emt 0:02:30]} f6 {[%emt 0:01:09]} 34. Qf4 {[%emt 0:01:17]} Nc8 {[%emt 0:01:12]} 35. e5 {[%emt 0:01:07]} d5 {[%emt 0:01:08]} 36. e6 {[%emt 0:00:25]} Qb7 {[%emt 0:02:24]} 37. Qf3 {[%emt 0:03:23]} Ne7 {[%emt 0:00:40]} 38. Qh5 {[%emt 0:00:45]} Rf8 {[%emt 0:01:02]} 39. Qf3 {[%emt 0:02:11]} Rd8 {[%emt 0:00:10]} 40. Qf2 {[%emt 0:00:24]} Qb4 {[%emt 0:00:58]} 41. Qf4 {[%emt 0:01:58]} Qb7 {[%emt 0:00:24]} 42. a3 {[%emt 0:00:40]} a5 {[%emt 0:00:36]} 43. g4 {[%emt 0:00:50]} d4 {[%emt 0:01:52]} 44. Rb1 {[%emt 0:00:42]} Kh8 {[%emt 0:00:48]} 45. Qd2 {[%emt 0:00:27]} Qa8 {[%emt 0:00:49]} 46. Kg1 {[%emt 0:00:44]} Rb8 {[%emt 0:00:55]} 47. b4 {[%emt 0:00:36]} Qa6 {[%emt 0:01:47]} 48. b5 {[%emt 0:00:59]} cxb5 {[%emt 0:00:36]} 49. cxb5 {[%emt 0:00:11]} Qb6 {[%emt 0:00:43]} 50. Qf2 {[%emt 0:02:45]} Nc6 {[%emt 0:00:37]} 51. Rdd1 {[%emt 0:00:57]} Ne5 {[%emt 0:00:19]} 52. Qg2 {[%emt 0:00:34]} Kg8 {[%emt 0:01:16]} 53. Qd5 {[%emt 0:01:33]} Nxg4 {[%emt 0:00:47]} 54. e7+ {[%emt 0:00:08]} Kh7 {[%emt 0:00:11]} 55. Qf7 {[%emt 0:00:39]} Ne5 {[%emt 0:01:01]} 56. e8=Q {[%emt 0:00:15]} Nxf7 {[%emt 0:00:11]} 57. Qxf7 {[%emt 0:00:07]} c4 {[%emt 0:00:16]} 58. Qxc4 {[%emt 0:01:14]} d3+ {[%emt 0:00:53]} 59. Kf1 {[%emt 0:00:11]} Qe3 {[%emt 0:00:28]} 60. Qxd3 {[%emt 0:01:11]} Qf4+ {[%emt 0:00:08]} 61. Kg2 {[%emt 0:00:39]} Qg4+ {[%emt 0:00:15]} 62. Qg3 {[%emt 0:00:09]} Qe2+ {[%emt 0:00:07]} 63. Kg1 {[%emt 0:00:24]} Qc4 {[%emt 0:00:40]} 64. Qxb8 {[%emt 0:00:55]} Qc5+ {[%emt 0:00:19]} 65. Kh1 {[%emt 0:00:30]} Qxa3 {[%emt 0:00:14]} 66. Qg3 {[%emt 0:00:09]} 1-0

[Event "ONJK-B 2019"]
[Site "Borne"]
[Date "2019.08.06"]
[Round "3.4"]
[White "Albertus, Bram"]
[Black "Hooijmans, Max"]
[Result "1-0"]
[ECO "A22"]
[WhiteElo "1841"]
[BlackElo "1559"]
[Annotator "NA"]
[PlyCount "59"]
[EventDate "2019.08.05"]
[EventType "swiss"]
[EventCountry "NED"]
[SourceTitle "playchess.com"]
[Source "ChessBase"]
[SourceQuality "1"]
[TimeControl "5400+30"]

1. c4 {[%emt 0:00:00]} e5 {[%emt 0:00:00]} 2. g3 {[%emt 0:00:00]} Nf6 {[%emt 0:00:16]} 3. Bg2 {[%emt 0:00:00]} Bc5 {[%emt 0:01:00]} 4. Nc3 {[%emt 0:00:00]} d6 {[%emt 0:00:47]} 5. e3 {[%emt 0:00:27]} O-O {[%emt 0:00:21]} 6. Nge2 {[%emt 0:00:15]} c6 {[%emt 0:00:53]} 7. O-O {[%emt 0:00:23]} Bg4 {[%emt 0:00:20]} 8. h3 {[%emt 0:01:37]} Bh5 {[%emt 0:05:27]} 9. e4 {[%emt 0:13:12]} Bd4 {[%emt 0:01:15]} 10. g4 {[%emt 0:08:41]} Bg6 {[%emt 0:04:48]} 11. d3 {[%emt 0:05:19]} Nfd7 {[%emt 0:08:26]} 12. Nxd4 {[%emt 0:01:50]} exd4 {[%emt 0:00:12]} 13. Ne2 {[%emt 0:00:27]} c5 {[%emt 0:00:22]} 14. f4 {[%emt 0:01:33]} f6 {[%emt 0:00:43]} 15. e5 {[%emt 0:04:14]} Nc6 {[%emt 0:03:30]} 16. f5 {[%emt 0:02:36]} Be8 {[%emt 0:00:36]} 17. Nf4 {[%emt 0:08:04]} dxe5 {[%emt 0:02:31]} 18. Ne6 {[%emt 0:00:32]} Qc8 {[%emt 0:00:48]} 19. Nxf8 {[%emt 0:00:35]} Kxf8 {[%emt 0:00:04]} 20. h4 {[%emt 0:01:17]} Ne7 {[%emt 0:00:54]} 21. Qf3 {[%emt 0:01:09]} Rb8 {[%emt 0:00:52]} 22. g5 {[%emt 0:01:56]} fxg5 {[%emt 0:01:33]} 23. hxg5 {[%emt 0:00:40]} Ng8 {[%emt 0:00:35]} 24. f6 {[%emt 0:01:04]} gxf6 {[%emt 0:03:35]} 25. gxf6 {[%emt 0:01:33]} Bf7 {[%emt 0:00:46]} 26. Bh3 {[%emt 0:03:51]} Qc7 {[%emt 0:02:02]} 27. Bg5 {[%emt 0:07:03]} b5 {[%emt 0:04:32]} 28. Qf5 {[%emt 0:08:26]} e4 {[%emt 0:01:30]} 29. Bf4 {[%emt 0:01:16]} Qc6 {[%emt 0:01:56]} 30. Qxd7 {[%emt 0:00:57]} 1-0

[Event "ONJK-B 2019"]
[Site "Borne"]
[Date "2019.08.06"]
[Round "3.5"]
[White "Klein, Lucas"]
[Black "Klaren, Oscar"]
[Result "0-1"]
[ECO "A61"]
[WhiteElo "1481"]
[BlackElo "1761"]
[Annotator "NA"]
[PlyCount "60"]
[EventDate "2019.08.05"]
[EventType "swiss"]
[EventCountry "NED"]
[SourceTitle "playchess.com"]
[Source "ChessBase"]
[SourceQuality "1"]
[TimeControl "5400+30"]

1. d4 {[%emt 0:00:00]} Nf6 {[%emt 0:00:00]} 2. c4 {[%emt 0:00:00]} e6 {[%emt 0:00:00]} 3. Nc3 {[%emt 0:00:00]} c5 {[%emt 0:00:00]} 4. d5 {[%emt 0:00:56]} exd5 {[%emt 0:00:00]} 5. cxd5 {[%emt 0:00:19]} d6 {[%emt 0:00:04]} 6. Nf3 {[%emt 0:00:43]} g6 {[%emt 0:00:11]} 7. Nd2 {[%emt 0:02:02]} Nbd7 {[%emt 0:01:30]} 8. Nc4 {[%emt 0:02:34]} Nb6 {[%emt 0:02:50]} 9. e4 {[%emt 0:01:47]} Nxc4 {[%emt 0:01:15]} 10. Qa4+ {[%emt 0:03:12]} Bd7 {[%emt 0:00:32]} 11. Qxc4 {[%emt 0:00:13]} Bg7 {[%emt 0:00:40]} 12. Be2 {[%emt 0:01:45]} O-O {[%emt 0:00:30]} 13. O-O {[%emt 0:01:47]} a6 {[%emt 0:00:24]} 14. a4 {[%emt 0:02:12]} Qe7 {[%emt 0:00:48]} 15. f3 {[%emt 0:06:27]} b5 {[%emt 0:01:36]} 16. Qd3 {[%emt 0:00:50]} b4 {[%emt 0:00:30]} 17. Nd1 {[%emt 0:02:18]} Nh5 {[%emt 0:01:10]} 18. Nf2 {[%emt 0:05:50]} f5 {[%emt 0:00:55]} 19. exf5 {[%emt 0:08:22]} Bxf5 {[%emt 0:00:23]} 20. Ne4 {[%emt 0:01:02]} Rfe8 {[%emt 0:02:17]} 21. Ra2 {[%emt 0:08:10]} Be5 {[%emt 0:05:11]} 22. g3 {[%emt 0:04:50]} Bxg3 {[%emt 0:02:57]} 23. hxg3 {[%emt 0:02:51]} Nxg3 {[%emt 0:00:10]} 24. Re1 {[%emt 0:02:19]} Nxe4 {[%emt 0:00:51]} 25. fxe4 {[%emt 0:00:12]} Bxe4 {[%emt 0:00:05]} 26. Qg3 {[%emt 0:01:52]} Bxd5 {[%emt 0:02:01]} 27. b3 {[%emt 0:00:23]} Qe5 {[%emt 0:02:43]} 28. Bf4 {[%emt 0:02:51]} Qd4+ {[%emt 0:00:12]} 29. Kf1 {[%emt 0:01:45]} Rf8 {[%emt 0:00:18]} 30. Rd1 {[%emt 0:02:12]} Qxf4+ {[%emt 0:00:48]} 0-1

[Event "ONJK-B 2019"]
[Site "Borne"]
[Date "2019.08.06"]
[Round "3.6"]
[White "Rogge, Parcival"]
[Black "Van Hille, Clara"]
[Result "1-0"]
[ECO "C54"]
[WhiteElo "1743"]
[BlackElo "1391"]
[Annotator "NA"]
[PlyCount "63"]
[EventDate "2019.08.05"]
[EventType "swiss"]
[EventCountry "NED"]
[SourceTitle "playchess.com"]
[Source "ChessBase"]
[SourceQuality "1"]
[TimeControl "5400+30"]

1. e4 {[%emt 0:00:00]} e5 {[%emt 0:00:00]} 2. Nf3 {[%emt 0:00:00]} Nc6 {[%emt 0:00:00]} 3. Bc4 {[%emt 0:00:00]} Bc5 {[%emt 0:00:00]} 4. d3 {[%emt 0:00:00]} Nf6 {[%emt 0:00:26]} 5. h3 {[%emt 0:00:23]} d6 {[%emt 0:00:14]} 6. c3 {[%emt 0:00:25]} a6 {[%emt 0:00:52]} 7. Bb3 {[%emt 0:00:37]} Ba7 {[%emt 0:00:34]} 8. Qe2 {[%emt 0:00:51]} h6 {[%emt 0:01:53]} 9. Be3 {[%emt 0:04:59]} Bd7 {[%emt 0:03:17]} 10. Bxa7 {[%emt 0:06:05]} Nxa7 {[%emt 0:02:50]} 11. d4 {[%emt 0:07:10]} Nc6 {[%emt 0:05:54]} 12. O-O {[%emt 0:07:27]} g5 {[%emt 0:04:41]} 13. Nbd2 {[%emt 0:00:00]} g4 {[%emt 0:05:33]} 14. hxg4 {[%emt 0:00:00]} Nxg4 {[%emt 0:01:09]} 15. Rad1 {[%emt 0:11:02]} Qf6 {[%emt 0:04:52]} 16. dxe5 {[%emt 0:04:53]} dxe5 {[%emt 0:03:47]} 17. Nc4 {[%emt 0:02:37]} O-O-O {[%emt 0:05:26]} 18. Ne3 {[%emt 0:06:09]} h5 {[%emt 0:05:42]} 19. Nd5 {[%emt 0:03:16]} Qg7 {[%emt 0:03:01]} 20. Bc4 {[%emt 0:04:29]} Kb8 {[%emt 0:10:39]} 21. b4 {[%emt 0:11:18]} Na7 {[%emt 0:03:53]} 22. a4 {[%emt 0:01:35]} Bxa4 {[%emt 0:01:03]} 23. Ra1 {[%emt 0:00:20]} Bb5 {[%emt 0:00:20]} 24. Bxb5 {[%emt 0:00:15]} Nxb5 {[%emt 0:01:15]} 25. c4 {[%emt 0:03:22]} Nd4 {[%emt 0:05:01]} 26. Nxd4 {[%emt 0:00:16]} exd4 {[%emt 0:00:10]} 27. b5 {[%emt 0:01:20]} Rh6 {[%emt 0:06:19]} 28. bxa6 {[%emt 0:01:26]} Rxa6 {[%emt 0:03:23]} 29. Rxa6 {[%emt 0:00:09]} bxa6 {[%emt 0:00:04]} 30. Rb1+ {[%emt 0:00:51]} Kc8 {[%emt 0:03:59]} 31. Qb2 {[%emt 0:06:16]} f6 {[%emt 0:09:16]} 32. Qb7+ {[%emt 0:00:15]} 1-0